[Event "World Junior U20 Girls 2018"]
[Site "Gebze"]
[Date "2018.09.14"]
[Round "10"]
[White "Nassr, Lina"]
[Black "Kamalidenova, Meruert"]
[Result "1/2-1/2"]
[ECO "D00"]
[WhiteElo "1854"]
[BlackElo "2011"]
[Annotator "NA"]
[PlyCount "79"]
[EventDate "2018.09.05"]
[EventType "swiss"]
[EventCountry "TUR"]
[SourceTitle "playchess.com"]
[Source "ChessBase"]
[SourceQuality "1"]
[TimeControl "40/5400+30:1800+30"]

1. d4 {[%emt 0:00:30]} Nf6 {[%emt 0:00:30]} 2. Nc3 {[%emt 0:00:00]} d5 {[%emt 0:03:30]} 3. Bf4 {[%emt 0:00:00]} g6 {[%emt 0:01:30]} 4. Nf3 {[%emt 0:01:30]} Bg7 {[%emt 0:01:30]} 5. e3 {[%emt 0:00:00]} O-O {[%emt 0:00:30]} 6. Be2 {[%emt 0:01:00]} c6 {[%emt 0:03:30]} 7. Ne5 {[%emt 0:02:30]} Bf5 {[%emt 0:01:30]} 8. g4 {[%emt 0:01:30]} Bc8 {[%emt 0:02:30]} 9. h4 {[%emt 0:04:30]} Ne4 {[%emt 0:04:30]} 10. Nxe4 {[%emt 0:05:30]} dxe4 {[%emt 0:00:30]} 11. h5 {[%emt 0:07:30]} f6 $16 {[%emt 0:03:30]} (11... Be6 $14) 12. Nc4 {[%emt 0:11:30]} e6 {[%emt 0:17:30]} 13. hxg6 {[%emt 0:05:30]} hxg6 {[%emt 0:00:30]} 14. Nd6 {[%emt 0:01:30]} Qb6 {[%emt 0:07:30]} 15. Bc4 {[%emt 0:14:30]} Bd7 {[%emt 0:03:30]} 16. Bb3 {[%emt 0:03:30]} c5 {[%emt 0:10:30]} 17. dxc5 {[%emt 0:09:30]} Qxc5 {[%emt 0:01:30]} 18. Qe2 {[%emt 0:03:30]} Na6 {[%emt 0:05:30]} 19. O-O-O {[%emt 0:03:30]} Qc6 {[%emt 0:01:30]} 20. Qf1 {[%emt 0:02:30]} Nc5 {[%emt 0:05:30]} 21. Qh3 {[%emt 0:01:15]} Rfc8 {[%emt 0:02:30]} 22. Qh7+ {[%emt 0:06:37]} Kf8 {[%emt 0:00:30]} 23. Nxc8 {[%emt 0:02:33]} Nxb3+ {[%emt 0:01:30]} 24. axb3 {[%emt 0:00:30]} Rxc8 {[%emt 0:00:30]} 25. Rd2 {[%emt 0:00:37]} g5 {[%emt 0:00:52]} 26. Bd6+ {[%emt 0:01:15]} Kf7 {[%emt 0:00:21]} 27. Qh5+ {[%emt 0:03:55]} Kg8 {[%emt 0:00:19]} 28. Qg6 {[%emt 0:01:38]} Be8 {[%emt 0:01:11]} 29. Qh7+ {[%emt 0:00:36]} Kf7 {[%emt 0:00:17]} 30. Qh3 {[%emt 0:01:14]} a5 {[%emt 0:02:22]} 31. Ba3 {[%emt 0:00:57]} b5 {[%emt 0:00:56]} 32. Bd6 {[%emt 0:01:11]} a4 {[%emt 0:01:58]} 33. bxa4 {[%emt 0:00:46]} Qa6 {[%emt 0:02:00]} 34. Qh2 {[%emt 0:01:37]} Qxa4 {[%emt 0:01:07]} 35. Kb1 {[%emt 0:02:10]} b4 {[%emt 0:01:13]} 36. Qh5+ {[%emt 0:00:52]} Kg8 {[%emt 0:00:30]} 37. Qh7+ {[%emt 0:00:30]} Kf7 {[%emt 0:00:00]} 38. Qh5+ {[%emt 0:00:17]} Kg8 {[%emt 0:00:00]} 39. Qh7+ {[%emt 0:00:14]} Kf7 {[%emt 0:00:00]} 40. Qh5+ {[%emt 0:00:00]} 1/2-1/2

[Event "World Junior U20 Girls 2018"]
[Site "Gebze"]
[Date "2018.09.14"]
[Round "10"]
[White "Sade, Defne"]
[Black "Vujcic, Milena"]
[Result "1-0"]
[ECO "C79"]
[WhiteElo "1826"]
[BlackElo "1955"]
[Annotator "NA"]
[PlyCount "73"]
[EventDate "2018.09.05"]
[EventType "swiss"]
[EventCountry "TUR"]
[SourceTitle "playchess.com"]
[Source "ChessBase"]
[SourceQuality "1"]
[TimeControl "40/5400+30:1800+30"]

1. e4 {[%emt 0:00:30]} e5 {[%emt 0:00:30]} 2. Nf3 {[%emt 0:00:30]} Nc6 {[%emt 0:00:00]} 3. Bb5 {[%emt 0:00:00]} a6 {[%emt 0:00:00]} 4. Ba4 {[%emt 0:00:00]} Nf6 {[%emt 0:00:30]} 5. d3 {[%emt 0:00:00]} d6 {[%emt 0:00:00]} 6. O-O {[%emt 0:00:00]} g6 {[%emt 0:00:00] C79: Ruy Lopez: Steinitz-type lines with 3...a6 4 Ba4 Nf6 5 0-0 d6} (6... b5 7. Bb3 Be7 8. a3 O-O 9. Nc3 Na5 10. Ba2 Be6 11. b4 Bxa2 12. Rxa2 Nc6 13. Bg5 Qd7 14. Bxf6 Bxf6 15. Nd5 a5 16. Nxf6+ gxf6 17. Rb2 axb4 18. axb4 {1-0 (40) Bacrot,E (2722)-Gretarsson,H (2565) chess.com INT 2018}) 7. Nc3 {[%emt 0:00:30]} Bg7 {[%emt 0:00:30]} 8. Bg5 {[%emt 0:01:30]} O-O {[%emt 0:05:30]} 9. Qd2 {[%emt 0:04:30]} b5 $146 {[%emt 0:08:30]} ({Predecessor:} 9... Bg4 10. Qe3 b5 11. Bb3 Qd7 12. Nd5 Nxd5 13. Bxd5 Rfb8 14. h3 {1-0 (33) Schoenbuchner,G-Trevis,R LSS email 2007}) 10. Bb3 {[%emt 0:00:30]} Qe8 {[%emt 0:00:30]} 11. Nh4 {[%emt 0:01:30]} Nd4 {[%emt 0:08:30]} 12. Rae1 {[%emt 0:08:30]} a5 {[%emt 0:05:30]} 13. a4 {[%emt 0:06:30]} b4 {[%emt 0:03:30]} 14. Nd5 {[%emt 0:01:30]} Nxb3 {[%emt 0:03:30]} 15. cxb3 {[%emt 0:07:30]} Nxd5 {[%emt 0:02:30]} 16. exd5 {[%emt 0:00:30]} Bb7 {[%emt 0:01:30]} 17. Bh6 {[%emt 0:06:30]} Qe7 {[%emt 0:02:30]} 18. g3 {[%emt 0:03:30]} Bxd5 {[%emt 0:05:30]} 19. d4 {[%emt 0:00:30]} e4 {[%emt 0:00:30]} 20. Ng2 {[%emt 0:07:30]} Bxb3 {[%emt 0:04:30]} 21. Bxg7 {[%emt 0:00:30]} Kxg7 {[%emt 0:00:00]} 22. d5 {[%emt 0:00:00]} Bxa4 {[%emt 0:08:00]} 23. f3 {[%emt 0:03:00]} c5 {[%emt 0:05:30]} 24. Rxe4 {[%emt 0:00:30]} Qd7 {[%emt 0:03:30]} 25. Rh4 {[%emt 0:05:30]} f6 {[%emt 0:05:30]} 26. Nf4 {[%emt 0:06:30]} Kg8 {[%emt 0:02:30]} 27. Ne6 {[%emt 0:00:30]} Rfe8 {[%emt 0:03:30]} 28. Qf4 {[%emt 0:06:30]} Rxe6 {[%emt 0:01:30]} 29. dxe6 {[%emt 0:00:30]} Qxe6 {[%emt 0:00:30]} 30. Qh6 {[%emt 0:01:30]} Qe7 {[%emt 0:02:08]} 31. Re4 {[%emt 0:01:30]} Qf7 {[%emt 0:00:32]} 32. Rfe1 {[%emt 0:01:30]} Re8 {[%emt 0:00:30]} 33. Rxe8+ {[%emt 0:00:30]} Bxe8 {[%emt 0:00:30]} 34. Qf4 {[%emt 0:00:30]} Bc6 $18 {[%emt 0:04:15]} (34... Qf8 $1 $11) 35. Qxd6 {[%emt 0:00:30]} Qd5 {[%emt 0:00:12]} 36. Re8+ {[%emt 0:01:30]} Kg7 {[%emt 0:00:03]} 37. Qf8# {[%emt 0:00:30]} 1-0

[Event "World Junior U20 Girls 2018"]
[Site "Gebze"]
[Date "2018.09.14"]
[Round "10"]
[White "Catal, Uktenur"]
[Black "Kyrkjebo, Hanna B"]
[Result "1-0"]
[ECO "E29"]
[WhiteElo "1809"]
[BlackElo "1947"]
[Annotator "NA"]
[PlyCount "133"]
[EventDate "2018.09.05"]
[EventType "swiss"]
[EventCountry "TUR"]
[SourceTitle "playchess.com"]
[Source "ChessBase"]
[SourceQuality "1"]
[TimeControl "40/5400+30:1800+30"]

1. d4 {[%emt 0:00:30]} Nf6 {[%emt 0:00:30]} 2. c4 {[%emt 0:00:30]} e6 {[%emt 0:00:30]} 3. Nc3 {[%emt 0:00:00]} Bb4 {[%emt 0:00:00]} 4. a3 {[%emt 0:00:00]} Bxc3+ $1 {[%emt 0:00:00]} 5. bxc3 {[%emt 0:00:00]} c5 {[%emt 0:00:00]} 6. e3 {[%emt 0:00:00]} O-O {[%emt 0:01:00]} 7. Bd3 {[%emt 0:00:00]} Nc6 {[%emt 0:00:30]} 8. Ne2 {[%emt 0:00:00]} b6 {[%emt 0:00:30]} 9. O-O {[%emt 0:00:30]} Ba6 {[%emt 0:00:30]} 10. e4 {[%emt 0:01:30]} Ne8 {[%emt 0:00:30]} 11. f4 {[%emt 0:00:00]} f5 {[%emt 0:01:30]} 12. exf5 {[%emt 0:00:00]} exf5 {[%emt 0:00:30]} 13. dxc5 {[%emt 0:00:30]} bxc5 {[%emt 0:01:30]} 14. Be3 {[%emt 0:00:00]} d6 $11 {[%emt 0:12:30] LiveBook: 21 Partien} 15. Ng3 {[%emt 0:00:00]} Qd7 {[%emt 0:20:30]} 16. Qf3 {[%emt 0:30:30]} Bb7 {[%emt 0:23:30]} 17. Qd5+ {[%emt 0:21:30]} Kh8 {[%emt 0:02:30]} 18. Bxf5 {[%emt 0:00:30]} Qe7 {[%emt 0:03:30]} 19. Qd3 {[%emt 0:00:30]} Nf6 {[%emt 0:01:30]} 20. Rae1 {[%emt 0:03:30]} Qc7 {[%emt 0:02:30]} 21. Ne4 {[%emt 0:06:30]} Nxe4 {[%emt 0:04:30]} 22. Bxe4 {[%emt 0:00:30]} h6 {[%emt 0:00:30]} 23. Rd1 {[%emt 0:00:30]} Rae8 {[%emt 0:02:30]} 24. Bg6 {[%emt 0:02:30]} Re6 {[%emt 0:02:35]} 25. f5 {[%emt 0:03:30]} Ref6 {[%emt 0:07:50]} 26. Bg5 {[%emt 0:05:30]} Ne5 {[%emt 0:00:54]} 27. Qg3 {[%emt 0:00:30]} Qc6 {[%emt 0:03:55]} 28. Bxf6 {[%emt 0:00:30]} Rxf6 {[%emt 0:01:20]} 29. Rde1 {[%emt 0:04:30]} Qa4 {[%emt 0:02:55]} 30. Rb1 {[%emt 0:03:13]} Qc6 {[%emt 0:00:50]} 31. Rfe1 {[%emt 0:01:12]} Kg8 {[%emt 0:01:49]} 32. Rbd1 {[%emt 0:00:36]} Rf8 {[%emt 0:00:55]} 33. Re2 {[%emt 0:01:59]} Qc7 {[%emt 0:01:00]} 34. Qh4 {[%emt 0:01:36]} Bf3 {[%emt 0:00:45]} 35. Rxe5 {[%emt 0:01:48]} Bxd1 {[%emt 0:00:16]} 36. Rd5 {[%emt 0:00:49]} Ba4 {[%emt 0:00:37]} 37. Qe4 {[%emt 0:00:54]} Bd7 {[%emt 0:00:36]} 38. Qe7 {[%emt 0:00:24]} Qc8 {[%emt 0:00:30]} 39. Qxd6 {[%emt 0:00:27]} Ba4 {[%emt 0:00:34]} 40. Rxc5 {[%emt 0:02:44]} Qb7 {[%emt 0:00:30]} 41. Qd5+ {[%emt 0:00:18]} Qxd5 {[%emt 0:05:09]} 42. cxd5 {[%emt 0:00:30]} Rd8 {[%emt 0:01:30]} 43. Kf2 {[%emt 0:01:30]} Be8 {[%emt 0:06:54]} 44. Bxe8 {[%emt 0:00:30]} Rxe8 {[%emt 0:00:00]} 45. c4 {[%emt 0:00:30]} Kf7 {[%emt 0:00:13]} 46. Rc7+ {[%emt 0:00:00]} Kf6 {[%emt 0:02:23]} 47. g4 {[%emt 0:01:00]} Re4 {[%emt 0:01:51]} 48. Kf3 {[%emt 0:00:30]} Rd4 {[%emt 0:00:00]} 49. a4 {[%emt 0:00:30]} a5 {[%emt 0:00:36]} 50. h3 {[%emt 0:01:30]} Ke5 {[%emt 0:02:07]} 51. Re7+ {[%emt 0:01:30]} Kd6 {[%emt 0:01:35]} 52. Rxg7 {[%emt 0:00:30]} Rxc4 {[%emt 0:01:03]} 53. Rg6+ {[%emt 0:00:00]} Kxd5 {[%emt 0:00:24]} 54. Rxh6 {[%emt 0:00:00]} Rxa4 {[%emt 0:01:02]} 55. Kg3 {[%emt 0:00:30]} Ra1 {[%emt 0:01:30]} 56. Kf4 {[%emt 0:00:30]} a4 {[%emt 0:00:33]} 57. h4 {[%emt 0:00:00]} a3 {[%emt 0:04:49]} 58. Ra6 {[%emt 0:00:00]} a2 {[%emt 0:00:51]} 59. Kg5 {[%emt 0:00:30]} Ke5 {[%emt 0:00:08]} 60. h5 {[%emt 0:00:00]} Kd5 {[%emt 0:02:14]} 61. h6 {[%emt 0:00:00]} Ke4 {[%emt 0:02:05]} 62. h7 {[%emt 0:00:30]} Rh1 {[%emt 0:00:36]} 63. Kg6 {[%emt 0:00:30]} Rh4 {[%emt 0:00:47]} 64. g5 {[%emt 0:00:30]} Rh2 {[%emt 0:01:36]} 65. Rxa2 {[%emt 0:00:30]} Rh1 {[%emt 0:00:24]} 66. f6 {[%emt 0:00:30]} Ke5 {[%emt 0:00:57]} 67. f7 {[%emt 0:00:00]} 1-0

[Event "World Junior U20 Girls 2018"]
[Site "Gebze"]
[Date "2018.09.14"]
[Round "10"]
[White "Can, Isil"]
[Black "Celik, Eylul"]
[Result "0-1"]
[ECO "B43"]
[WhiteElo "1798"]
[BlackElo "2014"]
[Annotator "NA"]
[PlyCount "86"]
[EventDate "2018.09.05"]
[EventType "swiss"]
[EventCountry "TUR"]
[SourceTitle "playchess.com"]
[Source "ChessBase"]
[SourceQuality "1"]
[TimeControl "40/5400+30:1800+30"]

1. e4 {[%emt 0:00:30]} c5 {[%emt 0:00:30]} 2. Nf3 {[%emt 0:00:30]} e6 {[%emt 0:00:30]} 3. d4 {[%emt 0:00:00]} cxd4 {[%emt 0:00:00]} 4. Nxd4 {[%emt 0:00:00]} Qb6 {[%emt 0:00:00]} 5. Nb3 {[%emt 0:00:00]} Qc7 {[%emt 0:00:30]} 6. Nc3 {[%emt 0:00:00]} a6 {[%emt 0:00:30]} 7. Bd3 {[%emt 0:00:00]} Nf6 {[%emt 0:00:00]} 8. O-O {[%emt 0:00:00]} b5 {[%emt 0:00:00]} 9. Qe2 {[%emt 0:00:30]} b4 {[%emt 0:10:30] B43: Sicilian: Kan Variation: 5 Nc3} (9... d6 10. Bd2 Nc6 11. a4 b4 12. Na2 Qb7 13. Rab1 Be7 14. c3 bxc3 15. bxc3 Ne5 16. Bc2 Qc7 17. a5 {½-½ (53) Ponomariov,R (2731)-Vachier Lagrave,M (2745) Beijing 2013}) 10. Nd1 {[%emt 0:00:30]} Bb7 {[%emt 0:02:30]} 11. e5 {[%emt 0:00:30]} Nd5 {[%emt 0:00:30]} 12. f4 {[%emt 0:00:00]} a5 {[%emt 0:01:30]} 13. c4 {[%emt 0:10:00]} bxc3 {[%emt 0:06:30]} 14. Nxc3 {[%emt 0:00:30]} a4 {[%emt 0:16:30]} 15. Nxd5 {[%emt 0:01:30]} Bxd5 {[%emt 0:00:30]} 16. Nd4 {[%emt 0:10:30]} Bc5 {[%emt 0:00:30]} 17. Be3 {[%emt 0:00:00]} Qb6 $146 {[%emt 0:02:30]} 18. Qf2 {[%emt 0:01:00]} Nc6 {[%emt 0:06:30]} 19. Nf5 {[%emt 0:03:30]} Bxe3 {[%emt 0:00:30]} 20. Qxe3 {[%emt 0:07:30]} Qxe3+ {[%emt 0:12:30]} 21. Nxe3 {[%emt 0:00:30]} Nb4 {[%emt 0:00:30]} 22. Nxd5 {[%emt 0:00:30]} Nxd5 {[%emt 0:00:30]} 23. b3 {[%emt 0:06:30]} Ke7 {[%emt 0:01:30]} 24. g3 {[%emt 0:08:30]} Rhb8 {[%emt 0:01:30]} 25. bxa4 {[%emt 0:01:30]} Rxa4 {[%emt 0:00:30]} 26. Bc2 {[%emt 0:00:30]} Rd4 {[%emt 0:04:30]} 27. Bb3 {[%emt 0:00:30]} Nc3 {[%emt 0:00:30]} 28. Rfe1 {[%emt 0:13:30]} h5 {[%emt 0:05:30]} 29. Rac1 {[%emt 0:10:30]} Rc8 {[%emt 0:05:30]} 30. Rc2 {[%emt 0:05:30]} Rd3 $11 {[%emt 0:05:29]} 31. Kf2 {[%emt 0:03:20]} Rc6 {[%emt 0:00:58]} 32. Kg2 {[%emt 0:03:38]} Nxa2 {[%emt 0:07:43]} 33. Rxc6 {[%emt 0:00:42]} dxc6 {[%emt 0:01:37]} 34. Bc4 {[%emt 0:08:31]} Rc3 {[%emt 0:05:08]} 35. Be2 {[%emt 0:01:49]} Rc2 {[%emt 0:02:55]} 36. Kh3 {[%emt 0:00:30]} g6 {[%emt 0:00:00]} 37. Bd3 {[%emt 0:00:35]} Rd2 {[%emt 0:00:30]} 38. Re2 {[%emt 0:00:51]} Rxe2 {[%emt 0:00:17]} 39. Bxe2 {[%emt 0:00:30]} Nc3 {[%emt 0:00:30]} 40. Bd3 {[%emt 0:00:30]} Nd5 {[%emt 0:00:30]} 41. Kh4 {[%emt 0:30:30]} c5 {[%emt 0:01:23]} 42. Kg5 {[%emt 0:00:00]} Ne3 {[%emt 0:00:30]} 43. f5 {[%emt 0:00:00]} exf5 {[%emt 0:00:30]} 0-1

[Event "World Junior U20 Girls 2018"]
[Site "Gebze"]
[Date "2018.09.14"]
[Round "10"]
[White "Zairbek kyzy, Begimay"]
[Black "Aubert, Laurane"]
[Result "1-0"]
[ECO "B22"]
[WhiteElo "1770"]
[BlackElo "1970"]
[Annotator "NA"]
[PlyCount "69"]
[EventDate "2018.09.05"]
[EventType "swiss"]
[EventCountry "TUR"]
[SourceTitle "playchess.com"]
[Source "ChessBase"]
[SourceQuality "1"]
[TimeControl "40/5400+30:1800+30"]

1. e4 {[%emt 0:00:30]} c5 {[%emt 0:00:30]} 2. c3 {[%emt 0:00:30]} Nf6 {[%emt 0:00:00]} 3. e5 {[%emt 0:00:00]} Nd5 {[%emt 0:00:00]} 4. d4 {[%emt 0:00:00]} cxd4 {[%emt 0:00:30]} 5. cxd4 {[%emt 0:00:30]} e6 {[%emt 0:00:00]} 6. Nf3 {[%emt 0:00:30]} d6 {[%emt 0:00:00]} 7. Bc4 {[%emt 0:01:30]} Nc6 {[%emt 0:00:00]} 8. O-O {[%emt 0:00:30]} Be7 {[%emt 0:00:00]} 9. a3 {[%emt 0:01:30]} O-O {[%emt 0:01:30]} 10. Bd3 {[%emt 0:03:30] B22: Sicilian: 2 c3} Qc7 {[%emt 0:05:30]} (10... Bd7 11. Qc2 g6 12. Bh6 Re8 13. Nbd2 Rc8 14. Qd1 dxe5 15. dxe5 Qc7 16. Qe1 Red8 17. Qe4 b5 {½-½ (70) Wang,H (2734)-Yu,Y (2734) Danzhou 2016 CBM 174 [Bronznik,V]}) 11. Re1 {[%emt 0:00:30]} Bd7 {[%emt 0:10:30]} 12. Nc3 {[%emt 0:04:30]} Nxc3 {[%emt 0:08:30]} 13. bxc3 {[%emt 0:00:00]} dxe5 {[%emt 0:00:30]} 14. dxe5 {[%emt 0:01:00]} f6 $146 {[%emt 0:21:30]} ({Predecessor:} 14... Na5 15. Ng5 h6 16. Nh7 Rfd8 17. Bxh6 gxh6 {0-1 (32) Sieg,K-Rubel,J (2103) Germany 2005}) 15. Qc2 {[%emt 0:06:30]} f5 {[%emt 0:11:30]} 16. Bc4 {[%emt 0:04:30]} Na5 {[%emt 0:02:30]} 17. Ba2 {[%emt 0:01:30]} Rac8 {[%emt 0:01:30]} 18. Nd4 {[%emt 0:04:30]} Nc4 {[%emt 0:02:30]} 19. Rb1 $14 {[%emt 0:03:30]} b6 {[%emt 0:04:30]} 20. Qe2 {[%emt 0:03:30]} Kh8 {[%emt 0:03:30]} 21. a4 {[%emt 0:04:30]} Bd8 {[%emt 0:09:16]} 22. Rb4 {[%emt 0:02:30]} Nxe5 {[%emt 0:11:22]} 23. Nxe6 {[%emt 0:09:30]} Bxe6 {[%emt 0:02:12]} 24. Bxe6 {[%emt 0:00:30]} Ng4 {[%emt 0:02:29]} 25. g3 {[%emt 0:02:30]} Be7 {[%emt 0:01:36]} 26. Rc4 {[%emt 0:00:30]} Bc5 {[%emt 0:00:29]} 27. Bxc8 {[%emt 0:04:30]} Nxf2 {[%emt 0:00:30]} 28. Be3 {[%emt 0:01:30]} Nh3+ {[%emt 0:00:22]} 29. Kg2 {[%emt 0:02:30]} Qxc8 {[%emt 0:00:31]} 30. Bxc5 {[%emt 0:01:30]} bxc5 {[%emt 0:01:09]} 31. Kxh3 {[%emt 0:00:30]} f4+ {[%emt 0:00:00]} 32. Qe6 {[%emt 0:00:00]} Qd8 {[%emt 0:00:30]} 33. Rxf4 {[%emt 0:01:00]} Rxf4 {[%emt 0:00:30]} 34. gxf4 {[%emt 0:00:00]} Qd3+ {[%emt 0:00:00]} 35. Kg2 {[%emt 0:00:00]} 1-0

[Event "World Junior U20 Girls 2018"]
[Site "Gebze"]
[Date "2018.09.14"]
[Round "10"]
[White "Yorgun, Yaren Naz"]
[Black "Nemcova, Karin"]
[Result "1/2-1/2"]
[ECO "B80"]
[WhiteElo "1751"]
[BlackElo "1990"]
[Annotator "NA"]
[PlyCount "61"]
[EventDate "2018.09.05"]
[EventType "swiss"]
[EventCountry "TUR"]
[SourceTitle "playchess.com"]
[Source "ChessBase"]
[SourceQuality "1"]
[TimeControl "40/5400+30:1800+30"]

1. e4 {[%emt 0:00:30]} c5 {[%emt 0:00:30]} 2. Nf3 {[%emt 0:00:30]} e6 {[%emt 0:00:00]} 3. d4 {[%emt 0:00:00]} cxd4 {[%emt 0:00:00]} 4. Nxd4 {[%emt 0:00:00]} Nc6 {[%emt 0:00:00]} 5. Nc3 {[%emt 0:00:30] LiveBook: 24566 Games} d6 {[%emt 0:00:00]} 6. g3 {[%emt 0:00:30]} Nf6 {[%emt 0:00:30]} 7. Bg2 {[%emt 0:00:30]} Be7 {[%emt 0:06:30]} 8. Nxc6 {[%emt 0:09:30]} bxc6 {[%emt 0:00:30]} 9. e5 {[%emt 0:00:30]} Nd5 {[%emt 0:00:00]} 10. exd6 {[%emt 0:01:30]} Bxd6 {[%emt 0:05:00]} 11. O-O {[%emt 0:04:30] B80: Sicilian Scheveningen: 6 g3 and 6 Be3, including English Attack} (11. Ne4 Ba6 12. Bf1 Bxf1 13. Kxf1 Be7 14. Kg2 O-O 15. Qe2 Rb8 16. c4 Nf6 17. Ng5 Qb6 18. Rb1 Rfd8 {1-0 (70) Rambaldi,F (2559)-Sukandar,I (2423) Saint Louis 2017}) 11... O-O {[%emt 0:00:30]} 12. Ne4 {[%emt 0:01:30]} Ba6 {[%emt 0:02:30]} 13. Re1 {[%emt 0:01:30]} Be7 {[%emt 0:00:30]} 14. Bd2 {[%emt 0:03:30]} Rb8 {[%emt 0:11:30]} 15. Qc1 $146 {[%emt 0:12:30]} ({Predecessor:} 15. b3 f5 16. Nc3 Bf6 17. Nxd5 Bxa1 18. Rxe6 cxd5 19. Rxa6 {0-1 (31) Pinkas,K (2320)-Kukawski,M (2338) Mrzezyno 2011}) 15... c5 {[%emt 0:09:30]} 16. Rd1 {[%emt 0:18:30]} Be2 {[%emt 0:05:30]} 17. Re1 {[%emt 0:00:30]} Ba6 {[%emt 0:00:30]} 18. Rd1 {[%emt 0:00:30]} c4 $11 {[%emt 0:02:30]} 19. Rb1 {[%emt 0:07:30]} Qc8 {[%emt 0:02:30]} 20. Nc3 {[%emt 0:01:30]} Nxc3 {[%emt 0:11:30]} 21. Bxc3 {[%emt 0:00:30]} Rd8 {[%emt 0:00:30]} 22. Rxd8+ {[%emt 0:04:30]} Qxd8 {[%emt 0:02:30]} 23. Qd1 {[%emt 0:07:30]} Qb6 {[%emt 0:11:30]} 24. Qd4 {[%emt 0:13:28]} Qxd4 {[%emt 0:06:30]} 25. Bxd4 {[%emt 0:00:04]} Bf6 {[%emt 0:03:40]} 26. Bxa7 {[%emt 0:01:38]} Rxb2 {[%emt 0:00:30]} 27. Rxb2 {[%emt 0:00:02]} Bxb2 {[%emt 0:00:00]} 28. Bf1 {[%emt 0:02:21]} Kf8 {[%emt 0:00:22]} 29. f4 {[%emt 0:01:23]} Ke7 {[%emt 0:00:13]} 30. Kf2 {[%emt 0:00:20]} Kd6 {[%emt 0:01:47]} 31. Ke3 {[%emt 0:01:13]} 1/2-1/2

[Event "World Junior U20 Girls 2018"]
[Site "Gebze"]
[Date "2018.09.14"]
[Round "10"]
[White "Incecik, Seyma Zeynep"]
[Black "Santeramo, Alessia"]
[Result "1/2-1/2"]
[ECO "C56"]
[WhiteElo "1716"]
[BlackElo "2124"]
[Annotator "NA"]
[PlyCount "60"]
[EventDate "2018.09.05"]
[EventType "swiss"]
[EventCountry "TUR"]
[SourceTitle "playchess.com"]
[Source "ChessBase"]
[SourceQuality "1"]
[TimeControl "40/5400+30:1800+30"]

1. e4 {[%emt 0:00:30]} e5 {[%emt 0:00:30]} 2. Bc4 {[%emt 0:00:00]} Nf6 {[%emt 0:00:30]} 3. d4 {[%emt 0:00:00]} exd4 {[%emt 0:02:30]} 4. Nf3 {[%emt 0:00:30]} Nc6 {[%emt 0:00:30]} 5. O-O {[%emt 0:02:30]} Nxe4 {[%emt 0:01:30]} 6. Re1 {[%emt 0:00:30]} d5 {[%emt 0:00:00]} 7. Bxd5 {[%emt 0:00:00]} Qxd5 {[%emt 0:00:00]} 8. Nc3 {[%emt 0:00:00]} Qh5 {[%emt 0:00:30]} 9. Nxe4 {[%emt 0:00:00]} Be6 {[%emt 0:00:30]} 10. Bg5 {[%emt 0:02:00]} Bd6 {[%emt 0:01:30]} 11. Nxd6+ {[%emt 0:05:30]} cxd6 {[%emt 0:00:00]} 12. Bf4 {[%emt 0:01:30]} Qd5 {[%emt 0:02:00]} 13. c3 {[%emt 0:13:30]} Qf5 {[%emt 0:07:30]} 14. cxd4 {[%emt 0:04:30]} Qxf4 {[%emt 0:01:30]} 15. d5 {[%emt 0:00:00]} O-O {[%emt 0:00:00]} 16. dxe6 $19 {[%emt 0:05:00] and White stays safe.} (16. Rxe6 $2 {[%emt 0:05:00][%mdl 8192]}) 16... fxe6 {[%emt 0:00:00]} 17. Rxe6 {[%emt 0:00:30]} Ne5 {[%emt 0:00:30]} 18. Rxd6 {[%emt 0:00:30]} Nxf3+ {[%emt 0:00:30]} 19. gxf3 {[%emt 0:00:30]} Qxf3 {[%emt 0:00:30]} 20. Qxf3 {[%emt 0:00:30]} Rxf3 {[%emt 0:00:30]} 21. Rd7 {[%emt 0:00:30]} Rf7 {[%emt 0:00:30]} 22. Rad1 {[%emt 0:00:30]} Raf8 {[%emt 0:00:30]} 23. Rxf7 {[%emt 0:00:30]} Rxf7 {[%emt 0:00:30]} 24. Rd8+ {[%emt 0:00:30]} Rf8 {[%emt 0:00:30]} 25. Rd7 {[%emt 0:00:30]} Rf7 {[%emt 0:11:30]} 26. Rd8+ {[%emt 0:14:30]} Rf8 {[%emt 0:00:30]} 27. Rd7 {[%emt 0:00:30]} Rf7 {[%emt 0:00:30]} 28. Rd8+ {[%emt 0:00:00]} Rf8 {[%emt 0:00:00]} 29. Rd7 {[%emt 0:00:00]} Rf7 {[%emt 0:00:00]} 30. Rd8+ {[%emt 0:00:30]} Rf8 {[%emt 0:00:00]} 1/2-1/2